fUSD/lending_fUSD_20260408
["ID","MTS","AMOUNT","RATE_DAILY","PERIOD"]
[420017469,1775616652241,-187.78006525,0.00015462,2]
[420017471,1775616652251,-1280.88388878,0.00015462,2]
[420017473,1775616652260,-200.0,0.00015462,2]
[420017475,1775616652270,-771.01748645,0.00015462,2]
[420017477,1775616652279,-181.08010149,0.00015462,2]
[420017479,1775616652289,-621.78829552,0.00015462,2]
[420017481,1775616652299,-284.30312486,0.00015462,2]
[420017483,1775616652308,-500.0,0.00015464,2]
[420017485,1775616652317,-151.0,0.00015464,2]
[420017487,1775616652327,-329.6,0.00015471,2]
[420017489,1775616652336,-880.09,0.00015471,2]
[420017491,1775616652345,-153.933673,0.00015482,2]
[420017493,1775616652354,-151.0,0.00015482,2]
[420017495,1775616652364,-151.652581,0.00015482,2]
[420017497,1775616652373,-151.0,0.00015482,2]
[420017499,1775616652382,-151.0,0.00015482,2]
[420017501,1775616652390,-151.0,0.00015482,2]
[420017503,1775616652399,-151.0,0.00015482,2]
[420017505,1775616652408,-151.0,0.00015482,2]
[420017506,1775616652417,-200.0,0.00015483,2]
[420017508,1775616652426,-2000.56,0.000155,2]
[420017510,1775616652435,-1292.69854844,0.000155,2]
[420017512,1775616652444,-500.0,0.00015519,2]
[420017514,1775616652454,-151.0,0.00015519,2]
[420017516,1775616652463,-162.4732,0.0001552,2]
[420017518,1775616652472,-162.4732,0.0001553,2]
[420017520,1775616652481,-1018.8666372,0.00015532,2]
[420017522,1775616652490,-338.93897535,0.00015532,2]
[420017524,1775616652499,-162.4732,0.0001554,2]
[420017526,1775616652508,-408.13,0.00015542,2]
[420017528,1775616652517,-162.4732,0.0001555,2]
[420017530,1775616652526,-162.4732,0.0001556,2]
[420017532,1775616652535,-162.4732,0.0001557,2]
[420017533,1775616652544,-500.0,0.00015573,2]
[420017534,1775616652555,-200.0,0.00015573,2]
[420017535,1775616652565,-500.0,0.00015574,2]
[420017536,1775616652574,-151.0,0.00015574,2]
[420017537,1775616652583,-500.0,0.00015574,2]
[420017538,1775616652592,-200.0,0.00015574,2]
[420017539,1775616652602,-181.401228,0.00015575,2]
[420017540,1775616652611,-151.0,0.00015575,2]
[420017541,1775616652620,-151.0,0.00015575,2]
[420017542,1775616652630,-151.0,0.00015575,2]
[420017543,1775616652639,-151.0,0.00015575,2]
[420017544,1775616652648,-151.0,0.00015575,2]
[420017545,1775616652658,-162.4732,0.0001558,2]
[420017546,1775616652667,-162.4732,0.0001558,2]
[420017547,1775616652677,-162.4732,0.0001558,2]
[420017548,1775616652687,-162.4732,0.0001558,2]
[420017549,1775616652698,-162.4732,0.0001558,2]
[420017550,1775616652707,-162.4732,0.0001558,2]
[420017551,1775616652717,-878.63144533,0.00015585,2]
[420017552,1775616652726,-224.14216289,0.00015585,2]
[420017553,1775616652735,-1434.0,0.0001559,2]
[420017554,1775616652744,-666.0,0.00015599,2]
[420017556,1775616652754,-211.801,0.000156,2]
[420017558,1775616652764,-1931.0,0.000156,5]
[420017560,1775616652773,-152.148034,0.000156,2]
[420017562,1775616652784,-151.0,0.000156,2]
[420017564,1775616652794,-1546.0,0.000156,5]
[420017566,1775616652803,-12373.02683027,0.000156,2]
[420017568,1775616652813,-153.483959,0.00015621,2]
[420017570,1775616652823,-151.0,0.00015621,2]
[420017572,1775616652833,-151.0,0.00015621,2]
[420017574,1775616652842,-151.0,0.00015621,2]
[420017576,1775616652852,-151.0,0.00015621,2]
[420017579,1775616652862,-151.0,0.00015621,2]
[420017580,1775616652872,-1000.0,0.00015628,2]
[420017582,1775616652882,-500.0,0.00015629,2]
[420017584,1775616652892,-151.0,0.00015629,2]
[420017586,1775616652902,-800.0,0.00015638,2]
[420017587,1775616652911,-480.59,0.00015638,2]
[420017588,1775616652920,-800.0,0.00015643,2]
[420017589,1775616652929,-800.0,0.00015643,2]
[420017590,1775616652939,-800.0,0.00015643,2]
[420017591,1775616652948,-161.19,0.00015643,2]
[420017592,1775616652958,-250.0,0.00015644,2]
[420017593,1775616652968,-800.0,0.00015648,2]
[420017594,1775616652977,-480.59,0.00015648,2]
[420017595,1775616652986,-162.0,0.00015649,2]
[420017596,1775616652996,-1000.0,0.0001565,2]
[420017597,1775616653004,-500.0,0.00015673,2]
[420017598,1775616653013,-500.0,0.00015673,2]
[420017599,1775616653023,-152.982932,0.00015673,2]
[420017600,1775616653032,-151.0,0.00015673,2]
[420017601,1775616653041,-151.0,0.00015673,2]
[420017602,1775616653050,-152.174207,0.00015673,2]
[420017603,1775616653061,-279.10813452,0.00015675,2]
[420017604,1775616653070,-162.0,0.0001568,2]
[420017605,1775616653079,-1573.0,0.0001568,2]
[420017606,1775616653090,-1118.62114824,0.0001568,2]
[420017607,1775616653100,-683.48047412,0.00015684,2]
[420017608,1775616653109,-500.0,0.00015684,2]
[420017609,1775616653118,-151.0,0.00015684,2]
[420017610,1775616653127,-86735.7692829,0.00015685,2]
[420017611,1775616653137,-11416.3840074,0.00015685,2]
[420017612,1775616653146,-23094.91904502,0.00015685,2]
[420017613,1775616653593,-2886.2607241,0.00015685,2]
[420017614,1775616653627,-625.54012998,0.00015685,2]
[420017615,1775616653646,-1176.41466757,0.00015685,2]
[420017616,1775616653673,-500.0,0.00013698,2]
[420017617,1775616653683,-1330.55493094,0.00015685,2]
[420017618,1775616653694,-289.53899997,0.00015685,2]
[420017619,1775616653835,-78108.26132252,0.00015685,2]
[420017620,1775616664878,6612.596,0.00011022,2]
[420017621,1775616664901,3387.404,0.00011022,2]
[420017622,1775616680585,-1639.121861,0.00011364,2]
[420017623,1775616680615,-300.0,0.00011421,2]
[420017624,1775616683960,-2098.38669743,0.00011422,2]
[420017625,1775616686657,-536.62,0.00011022,2]
[420017626,1775616686700,-8926.77,0.00011422,2]
[420017627,1775616692862,1206.97,0.00016,120]
[420017628,1775616692888,-10000.01,0.00011422,2]
[420017629,1775616695814,-4510.35272357,0.00011422,2]
[420017630,1775616695836,-979.30455286,0.00011422,2]
[420017631,1775616726964,155.0,0.00011507,2]
[420017632,1775616729443,369.31,6.845e-05,2]
[420017633,1775616729647,369.31,7.205e-05,2]
[420017634,1775616730160,369.31,7.566e-05,2]
[420017635,1775616730373,369.31,7.926e-05,2]
[420017636,1775616730587,369.31,8.286e-05,2]
[420017637,1775616730801,369.31,8.646e-05,2]
[420017638,1775616731000,369.31,9.007e-05,2]
[420017639,1775616731219,369.31,9.367e-05,2]
[420017640,1775616731428,369.31,9.727e-05,2]
[420017641,1775616731623,369.31,0.00010087,2]
[420017642,1775616731822,369.31,0.00010448,2]
[420017643,1775616732021,369.31,0.00010808,2]
[420017644,1775616732231,369.31,0.00011168,2]
[420017645,1775616738225,276.57352178,9.012e-05,4]
[420017646,1775616749130,512.0,0.000114,5]
[420017647,1775616788475,155.0,0.00011507,2]
[420017648,1775616882637,1086.27,0.00016,120]
[420017649,1775617073399,977.64,0.00016,120]
[420017650,1775617209098,179.28,9.411e-05,2]
[420017651,1775617263522,879.88,0.00016,120]
[420017657,1775617427479,1889.59,0.00011344,2]
[420017658,1775617453032,791.89,0.00016,120]
[420017659,1775617456012,3282.0,0.000114,5]
[420017660,1775617578921,5533.0,0.000113,5]
[420017661,1775617619062,738.7,0.00011507,2]
[420017662,1775617643814,712.7,0.00016,120]
[420017663,1775617650304,300.0,0.000115,4]
[420017664,1775617671928,146.31,0.00011428,2]
[420017665,1775617671955,63.56899549,0.00011428,2]
[420017666,1775617692375,1600.0,0.00010979,2]
[420017667,1775617723571,267.15,0.00010971,2]
[420017669,1775617813872,9732.86,0.000107,2]
[420017670,1775617813899,10000.01,0.000107,2]
[420017671,1775617826194,-367.96748273,0.000107,2]
[420017672,1775617826221,-10000.01,0.000107,2]
[420017673,1775617826347,-10000.01,0.000107,2]
[420017674,1775617826501,-10000.01,0.000107,2]
[420017675,1775617826615,-10000.01,0.000107,2]
[420017696,1775617833239,-4327.02636554,0.000107,2]
[420017697,1775617833352,-314.57995572,0.000107,2]
[420017698,1775617833365,-1513.58232096,0.000107,2]
[420017699,1775617833378,-458.44747329,0.000107,2]
[420017700,1775617833390,-9693.89368744,0.000107,2]
[420017701,1775617833403,-301.48251273,0.000107,2]
[420017702,1775617833415,-22986.37020159,0.000107,2]
[420017703,1775617833426,-634.99052144,0.00011507,2]
[420017704,1775617833436,-226.8741356,0.00011507,2]
[420017705,1775617833446,-319.0,0.00011507,2]
[420017706,1775617833456,-600.0,0.00011518,2]
[420017707,1775617833465,-369.31,0.00011529,2]
[420017708,1775617833475,-209.87899548,0.00011558,2]
[420017709,1775617833485,-600.0,0.000116,4]
[420017710,1775617833496,-600.0,0.00011633,2]
[420017711,1775617833506,-1200.0,0.00011685,2]
[420017712,1775617833516,-2500.0,0.00011686,2]
[420017713,1775617833526,-300.0,0.00011687,2]
[420017714,1775617833536,-209.87899548,0.00011688,2]
[420017715,1775617833547,-1237.30268309,0.00011688,2]
[420017716,1775617833557,-25262.6003077,0.00011688,2]
[420017717,1775617833567,-1000.0,0.000117,4]
[420017718,1775617833577,-576.75688538,0.00011773,2]
[420017719,1775617833587,-500.7116693,0.00011773,2]
[420017720,1775617833597,-500.29821568,0.00011773,2]
[420017721,1775617833606,-500.0,0.00011773,2]
[420017722,1775617833616,-500.0,0.00011773,2]
[420017723,1775617833627,-500.0,0.00011773,2]
[420017724,1775617833637,-500.0,0.00011773,2]
[420017725,1775617833647,-500.0,0.00011773,2]
[420017726,1775617833657,-500.0,0.00011773,2]
[420017727,1775617833667,-200.08326476,0.00011773,2]
[420017728,1775617833676,-246.25716228,0.00011773,2]
[420017729,1775617833686,-500.0,0.00011773,2]
[420017730,1775617833696,-500.0,0.00011773,2]
[420017731,1775617833705,-500.0,0.00011773,2]
[420017732,1775617833715,-500.0,0.00011773,2]
[420017733,1775617833725,-500.0,0.00011773,2]
[420017734,1775617833735,-170.15582469,0.00011773,2]
[420017735,1775617833745,-500.22085293,0.00011773,2]
[420017736,1775617833755,-281.88719221,0.00011773,2]
[420017737,1775617833765,-500.0,0.00011773,2]
[420017738,1775617833775,-164.45663059,0.00011773,2]
[420017739,1775617833785,-500.0,0.00011773,2]
[420017740,1775617833795,-500.0,0.00011773,2]
[420017741,1775617833806,-305.18539479,0.00011776,2]
[420017742,1775617833816,-150.0,0.00011778,2]
[420017743,1775617833826,-767.72844533,0.00011779,2]
[420017744,1775617833835,-500.0,0.00011779,2]
[420017745,1775617833845,-500.0,0.00011779,2]
[420017746,1775617833854,-255.28269949,0.00011779,2]
[420017747,1775617833865,-201.60184993,0.00011779,2]
[420017748,1775617833875,-500.0,0.00011779,2]
[420017749,1775617833885,-500.0,0.00011779,2]
[420017750,1775617833895,-500.0,0.00011779,2]
[420017751,1775617833905,-500.0,0.00011779,2]
[420017752,1775617833915,-518.83976333,0.00011779,2]
[420017753,1775617833925,-151.0,0.00011779,2]
[420017754,1775617833936,-151.0,0.00011779,2]
[420017755,1775617833946,-151.0,0.00011779,2]
[420017756,1775617833956,-151.0,0.00011779,2]
[420017757,1775617833965,-151.0,0.00011779,2]
[420017758,1775617833975,-151.0,0.00011779,2]
[420017759,1775617833985,-153.02261597,0.00011779,2]
[420017760,1775617833995,-151.0,0.00011779,2]
[420017761,1775617834005,-151.0,0.00011779,2]
[420017762,1775617834015,-151.0,0.00011779,2]
[420017763,1775617834025,-151.0,0.00011779,2]
[420017764,1775617834034,-151.0,0.00011779,2]
[420017765,1775617834044,-151.0,0.00011779,2]
[420017766,1775617834053,-1202.04852181,0.00011779,2]
[420017767,1775617834063,-151.0,0.00011779,2]
[420017768,1775617834072,-151.0,0.00011779,2]
[420017769,1775617834082,-151.0,0.00011779,2]
[420017770,1775617834092,-151.0,0.00011779,2]
[420017771,1775617834101,-151.0,0.00011779,2]
[420017772,1775617834111,-151.0,0.00011779,2]
[420017773,1775617834120,-500.0,0.00011784,2]
[420017774,1775617834130,-500.0,0.00011784,2]
[420017775,1775617834140,-500.0,0.00011784,2]
[420017776,1775617834149,-500.0,0.00011784,2]
[420017777,1775617834159,-307.59217209,0.00011784,2]
[420017778,1775617834169,-442.21605325,0.00011784,2]
[420017779,1775617834179,-500.0,0.00011784,2]
[420017780,1775617834188,-500.0,0.00011784,2]
[420017781,1775617834198,-500.0,0.00011784,2]
[420017782,1775617834208,-500.0,0.00011784,2]
[420017783,1775617834218,-500.0,0.00011784,2]
[420017784,1775617834227,-500.0,0.00011784,2]
[420017785,1775617834237,-249.70320243,0.00011784,2]
[420017786,1775617834247,-500.0,0.00011784,2]
[420017787,1775617834257,-500.0,0.00011784,2]
[420017788,1775617834266,-500.0,0.00011784,2]
[420017789,1775617834276,-500.0,0.00011784,2]
[420017790,1775617834286,-500.0,0.00011784,2]
[420017791,1775617834296,-500.0,0.00011784,2]
[420017792,1775617834306,-1117.02022931,0.00011785,3]
[420017793,1775617834315,-187.406,0.00011785,2]
[420017794,1775617834325,-3454.64,0.00011785,2]
[420017795,1775617834335,-500.0,0.00011785,2]
[420017796,1775617834345,-500.0,0.00011785,2]
[420017797,1775617834355,-512.07437359,0.00011785,2]
[420017798,1775617834365,-500.0,0.00011785,2]
[420017799,1775617834375,-211.41215187,0.00011785,2]
[420017800,1775617834385,-244.59422013,0.00011785,2]
[420017801,1775617834395,-500.0,0.00011785,2]
[420017802,1775617834406,-403.74720237,0.00011785,2]
[420017803,1775617834415,-150.0,0.00011785,2]
[420017804,1775617834425,-194.32003566,0.00011785,2]
[420017805,1775617834436,-150.0,0.00011785,2]
[420017806,1775617834446,-183.12154208,0.00011785,2]
[420017807,1775617834456,-865833.21797218,0.00011786,2]
[420017808,1775617834469,-87855.84479438,0.00011786,2]
[420017809,1775617834482,-93779.92080626,0.00011786,2]
[420017810,1775617834494,-2531.69785087,0.00011786,2]
[420017811,1775617834506,-14861.54283471,0.00011786,2]
[420017812,1775617834518,-388.8323745,0.00011786,2]
[420017813,1775617834530,-574.81083747,0.00011786,2]
[420017814,1775617834542,-1177.35374913,0.00011786,2]
[420017815,1775617834554,-2412.11522595,0.00011786,2]
[420017816,1775617834566,-1950.17403298,0.00011786,2]
[420017817,1775617834578,-4775.8559646,0.00011786,2]
[420017818,1775617834590,-2398.33092069,0.00011786,2]
[420017819,1775617834670,641.43,0.00016,120]
[420017820,1775617838405,-500.0,0.00011784,2]
[420017822,1775617838415,-500.0,0.00011784,2]
[420017823,1775617838425,-500.0,0.00011784,2]
[420017824,1775617838435,-476.24289108,0.00011786,2]
[420017825,1775617838445,-170.1556017,0.00011786,2]
[420017826,1775617838455,-8072.9214305,0.00011786,2]
[420017827,1775617838468,-3094.34989016,0.00011786,2]
[420017828,1775617838688,-330.47737862,0.00011786,2]
[420017829,1775617838700,-557.22420288,0.00011786,2]
[420017830,1775617838711,-1000.000001,0.00011786,2]
[420017831,1775617838723,-2592.10527869,0.00011786,2]
[420017832,1775617840795,-357.18216831,0.00011786,2]
[420017833,1775617840805,-5.82901062,0.00011786,2]
[420017834,1775617841081,-145.17098938,0.00011786,2]
[420017835,1775617841091,-979.77392521,0.00011786,2]
[420017836,1775617841103,-264.56333182,0.00011786,2]
[420017837,1775617841115,-3466.52067866,0.00011786,2]
[420017838,1775617841127,-3018.03851162,0.00011786,2]
[420017839,1775617841138,-1312.31555726,0.00011786,2]
[420017840,1775617841150,-1067.42379196,0.00011786,2]
[420017841,1775617841796,-477.554,0.00011786,2]
[420017842,1775617841808,-8441.88632382,0.00011786,2]
[420017843,1775617841821,-564.11572434,0.00011786,2]
[420017860,1775617844022,-151.0,0.00011786,2]
[420017862,1775617844033,-267.88662624,0.00011786,2]
[420017864,1775617844044,-32438.18551218,0.00011786,2]
[420017866,1775617844056,-25819.14026162,0.00011786,2]
[420017871,1775617846338,-208.46680511,0.00011786,2]
[420017872,1775617846349,-200.91496968,0.00011786,2]
[420017873,1775617846359,-3209.08063539,0.00011786,2]
[420017877,1775617846684,-90185.88195267,0.00011786,2]
[420017878,1775617847033,-4966.69122475,0.00011688,2]
[420017879,1775617847043,-3608.01325811,0.00011786,2]
[420017882,1775617856641,5533.0,0.000113,5]
[420017883,1775617867477,154.0,0.00011507,2]
[420017884,1775617868739,161.0,0.00011507,2]
[420017885,1775617927782,155.0,0.00011507,3]
[420017886,1775617969485,150.0,0.00011012,2]
[420017887,1775617972121,1678.99,0.00011012,2]
[420017888,1775618000833,-186.038,0.00011551,2]
[420017889,1775618000863,-3089.527,0.00011551,2]
[420017890,1775618000893,-320.0,0.00011551,2]
[420017891,1775618023383,577.29,0.00016,120]
[420017892,1775618028665,2319.43,0.00011076,2]
[420017893,1775618063287,254.0,6.815e-05,2]
[420017895,1775618112327,163.0,0.00011551,2]
[420017896,1775618140503,72.45,0.00011302,2]
[420017897,1775618140526,181.54,0.00011302,2]
[420017898,1775618165494,174.0,0.00011551,2]
[420017899,1775618183607,197.60921655,0.00011551,2]
[420017900,1775618215134,519.56,0.00016,120]
[420017901,1775618226483,164.0,0.00011551,2]
[420017902,1775618256813,200.0,0.00011294,2]
[420017903,1775618287500,164.0,0.00011551,2]
[420017904,1775618347379,164.0,0.00011551,2]
[420017905,1775618399675,1000.56,0.000112,2]
[420017908,1775618405398,467.6,0.00016,120]
[420017909,1775618412706,160.0,0.00011551,2]
[420017910,1775618412887,163.0,0.00011551,2]
[420017911,1775618465126,160.0,0.00011551,2]
[420017912,1775618487964,221.378,0.00011453,2]
[420017913,1775618487995,3184.481,0.00011453,2]
[420017914,1775618525194,160.0,0.00011551,2]
[420017915,1775618572404,842.90309923,0.00011551,2]
[420017916,1775618591417,161.0,0.00011551,2]
[420017917,1775618596287,420.84,0.00016,120]
[420017918,1775618709010,164.0,0.00011551,2]
[420017919,1775618777160,151.0,0.00011551,2]
[420017920,1775618786904,378.76,0.00016,120]
[420017921,1775618857578,6506.4,0.00011551,2]
[420017922,1775618891206,2000.0,0.00010891,2]
[420017923,1775618920635,428.03,0.00010874,2]
[420017924,1775618955775,500.0,0.00011486,2]
[420017925,1775618963308,156.0,6.952e-05,2]
[420017926,1775618963560,156.0,6.952e-05,2]
[420017927,1775618963817,156.0,6.952e-05,2]
[420017928,1775618964072,156.0,6.952e-05,2]
[420017929,1775618964324,156.0,6.952e-05,2]
[420017930,1775618964584,156.0,6.952e-05,2]
[420017931,1775618964840,156.0,6.952e-05,2]
[420017932,1775618965091,156.0,6.952e-05,2]
[420017933,1775618965520,156.0,6.952e-05,2]
[420017934,1775618965786,156.0,6.952e-05,2]
[420017935,1775618966040,156.0,6.952e-05,2]
[420017936,1775618966128,-320.0,0.00011572,2]
[420017937,1775618966150,-252.79671744,0.00011579,2]
[420017938,1775618966171,-692.01737697,0.00011586,2]
[420017939,1775618966192,-1000.0,0.00011586,2]
[420017940,1775618966615,-2500.0,0.00011586,2]
[420017941,1775618966638,-300.0,0.0001167,2]
[420017942,1775618966661,-1200.0,0.00011671,2]
[420017943,1775618966683,-300.0,0.00011671,2]
[420017944,1775618966705,-500.0,0.00011673,2]
[420017945,1775618966726,-139.12748959,0.00011673,2]
[420017946,1775618975799,1500.0,0.00011284,2]
[420017947,1775618976332,340.88,0.00016,120]
[420017948,1775619010880,164.0,0.00011551,2]
[420017949,1775619031434,-343.29292514,0.00011573,2]
[420017950,1775619034826,-706.82415317,0.00011573,2]
[420017951,1775619034844,-3295.73774339,0.00011573,2]
[420017952,1775619034855,-300.0,0.00011578,2]
[420017953,1775619034866,-1200.0,0.00011578,2]
[420017954,1775619034877,-150.0,0.00011578,2]
[420017955,1775619034888,-287.57769787,0.00011578,2]
[420017956,1775619034898,-277.98799562,0.00011578,2]
[420017957,1775619034910,-500.0,0.00011578,2]
[420017958,1775619034920,-500.0,0.00011578,2]
[420017959,1775619034930,-500.0,0.00011578,2]
[420017960,1775619034941,-624.8703622,0.00011578,2]
[420017961,1775619034953,-193.44169825,0.00011578,2]
[420017962,1775619034963,-500.0,0.00011578,2]
[420017963,1775619034974,-170.88091782,0.00011578,2]
[420017964,1775619034985,-500.0,0.00011578,2]
[420017965,1775619034995,-500.0,0.00011578,2]
[420017966,1775619035006,-500.0,0.00011578,2]
[420017967,1775619035017,-593.10661799,0.00011578,2]
[420017968,1775619035028,-313.53606452,0.00011578,2]
[420017969,1775619035039,-500.0,0.00011578,2]
[420017970,1775619035049,-500.0,0.00011578,2]
[420017971,1775619035060,-343.45431694,0.00011578,2]
[420017972,1775619035073,-156.54568306,0.00011578,2]
[420017973,1775619035083,-500.0,0.00011578,2]
[420017974,1775619035093,-238.64380952,0.00011578,2]
[420017975,1775619035104,-177.04751019,0.00011579,2]
[420017976,1775619035115,-853.32593734,0.00011579,2]
[420017977,1775619035190,-21922.42510504,0.00011579,2]
[420017978,1775619035203,-238618.67315661,0.00011579,2]
[420017979,1775619035215,-27334.14838159,0.00011579,2]
[420017980,1775619035228,-49342.76685593,0.00011579,2]
[420017981,1775619035240,-4382.21373808,0.00011579,2]
[420017982,1775619035252,-868.52832,0.00011579,2]
[420017983,1775619035265,-9835.566751,0.00011579,2]
[420017984,1775619035277,-9194.64174242,0.00011579,2]
[420017996,1775619037748,-203.45692986,0.00011569,2]
[420017997,1775619037757,-1024.41406348,0.00011579,2]
[420017998,1775619037768,-446.26987052,0.00011579,2]
[420017999,1775619037780,-485.22488793,0.00011579,2]
[420018000,1775619037792,-914.773316,0.00011579,2]
[420018001,1775619037804,-110543.75316219,0.00011579,2]
[420018060,1775619039941,-689.07012741,0.00011579,2]
[420018061,1775619039954,-1386.70499995,0.00011579,2]
[420018065,1775619040187,-628.54934589,0.00011579,2]
[420018066,1775619040200,-2583.16358,0.00011579,2]
[420018067,1775619040212,-3380.17485733,0.00011579,2]
[420018068,1775619040224,-310338.42548469,0.00011579,2]
[420018070,1775619040815,-277.1987,0.00011579,2]
[420018080,1775619042737,-931.86771549,0.00011579,2]
[420018098,1775619043021,-4362.25192,0.00011579,2]
[420018099,1775619043041,-5038.18168835,0.00011579,2]
[420018100,1775619043055,-18993.50578115,0.00011579,2]
[420018101,1775619043352,-839.18805307,0.00011579,2]
[420018103,1775619043365,-41049.2077956,0.00011579,2]
[420018107,1775619045453,173.2,5.557e-05,2]
[420018108,1775619045545,-320.0,0.00011579,2]
[420018110,1775619045555,-174.5,0.00011579,2]
[420018111,1775619045568,-67334.97641258,0.00011579,2]
[420018112,1775619045641,173.2,5.85e-05,2]
[420018113,1775619045845,173.2,6.142e-05,2]
[420018114,1775619045859,-41326.6846784,0.00011579,2]
[420018115,1775619045871,-20592.60526196,0.00011579,2]
[420018116,1775619045883,-106778.328639,0.00011579,2]
[420018117,1775619046079,173.2,6.435e-05,2]
[420018119,1775619046387,-38648.35372871,0.00011579,2]
[420018120,1775619046418,173.2,6.727e-05,2]
[420018121,1775619046464,173.2,7.02e-05,2]
[420018122,1775619046655,173.2,7.312e-05,2]
[420018123,1775619046877,173.2,7.605e-05,2]
[420018124,1775619047062,173.2,7.897e-05,2]
[420018125,1775619047453,173.2,8.19e-05,2]
[420018126,1775619047647,173.2,8.482e-05,2]
[420018127,1775619048673,173.2,8.775e-05,2]
[420018128,1775619048710,173.2,9.067e-05,2]
[420018129,1775619048741,173.2,9.36e-05,2]
[420018130,1775619048775,173.2,9.652e-05,2]
[420018131,1775619048824,173.2,9.945e-05,2]
[420018132,1775619048884,173.2,0.00010237,2]
[420018133,1775619049158,173.2,0.0001053,2]
[420018134,1775619049404,173.2,0.00010822,2]
[420018135,1775619049773,173.2,0.00011115,2]
[420018136,1775619075752,2589.73999439,0.00011485,2]
[420018137,1775619084588,66.27000561,0.00011233,2]
[420018138,1775619084610,83.72999439,0.00011233,2]
[420018139,1775619084655,150.0,0.00011233,120]
[420018140,1775619119899,500.0,0.00011472,2]
[420018141,1775619165616,306.8,0.00016,120]
[420018142,1775619202349,-300.0,0.00011577,2]
[420018143,1775619202383,-300.0,0.00011577,2]
[420018144,1775619202415,-150.0,0.00011577,2]
[420018145,1775619202447,-177.102,0.00011578,2]
[420018146,1775619202479,-2547.585,0.00011578,2]
[420018147,1775619202511,-320.0,0.00011578,2]
[420018148,1775619202543,-500.0,0.00011578,2]
[420018149,1775619202574,-500.0,0.00011578,2]
[420018150,1775619202853,1852.42,0.00010775,2]
[420018151,1775619202953,-433.99794352,0.00011578,2]
[420018152,1775619202992,-500.0,0.00011578,2]
[420018153,1775619203032,-500.0,0.00011578,2]
[420018154,1775619203070,-500.0,0.00011578,2]
[420018155,1775619203108,-500.0,0.00011578,2]
[420018156,1775619203146,-500.0,0.00011578,2]
[420018157,1775619203183,-500.0,0.00011578,2]
[420018158,1775619203221,-500.0,0.00011578,2]
[420018159,1775619203255,-500.0,0.00011578,2]
[420018160,1775619203293,-500.0,0.00011578,2]
[420018161,1775619211317,-500.0,0.00011578,2]
[420018162,1775619211355,-500.0,0.00011578,2]
[420018163,1775619211391,-500.0,0.00011578,2]
[420018164,1775619211428,-500.0,0.00011578,2]
[420018165,1775619211466,-500.0,0.00011578,2]
[420018166,1775619211502,-396.91790057,0.00011578,2]
[420018167,1775619211538,-500.0,0.00011578,2]
[420018168,1775619211574,-500.0,0.00011578,2]
[420018169,1775619211608,-500.0,0.00011578,2]
[420018170,1775619211644,-500.0,0.00011578,2]
[420018171,1775619214194,-500.0,0.00011578,2]
[420018172,1775619214231,-500.0,0.00011578,2]
[420018173,1775619214269,-500.0,0.00011578,2]
[420018174,1775619214307,-500.0,0.00011578,2]
[420018175,1775619214342,-500.0,0.00011578,2]
[420018176,1775619214379,-500.0,0.00011578,2]
[420018177,1775619214414,-500.0,0.00011578,2]
[420018178,1775619214450,-500.0,0.00011578,2]